bitfinex/quotes_ETHUSD_20260126
["timestamp","ask_amount","ask_price","bid_price","bid_amount"]
[1769429205032,0.32654125,2900.3,2900.1,1145.39279996]
[1769429205231,0.32654125,2900.3,2900.1,1143.19745761]
[1769429205462,0.04352039,2900.2,2900.1,1141.99988918]
[1769429205866,0.04352039,2900.2,2900.1,1132.62536911]
[1769429206175,0.04352039,2900.2,2900.1,1127.44312499]
[1769429206337,0.73985413,2900.2,2900.1,1126.58000293]
[1769429206542,0.28302086,2900.3,2900.1,1124.85375881]
[1769429206757,0.28302086,2900.3,2900.1,1123.12751469]
[1769429206940,7.072,2900.4,2900.1,1122.26439263]
[1769429207240,7.072,2900.4,2900.1,1120.53814851]
[1769429212579,6.35,2900.4,2900.1,1120.53814851]
[1769429212791,6.35,2900.4,2900.1,1128.46945401]
[1769429212965,0.722,2900.3,2900.2,2.18881725]
[1769429213293,7.072,2900.4,2900.1,1120.53814851]
[1769429213595,0.002,2900.2,2900.1,1128.33561168]
[1769429214090,7.074,2900.4,2900.1,1128.33561168]
[1769429214899,0.7072,2901.0,2900.2,7.79746317]
[1769429215076,0.722,2900.9,2900.3,7.79746317]
[1769429218050,8.34639382,2900.9,2900.1,1128.33561168]
[1769429218451,7.84639382,2900.9,2900.1,1128.33561168]
[1769429218652,9.3367532,2900.9,2900.1,1128.33561168]
[1769429219473,1.71235938,2900.9,2900.2,7.79746317]
[1769429221473,9.692003,2900.8,2900.1,1120.53814851]
[1769429221676,9.692003,2900.8,2900.1,1128.33561168]
[1769429221881,5.857599,2900.8,2900.1,1128.33561168]
[1769429222186,1.51943522,2900.7,2900.1,1128.33561168]
[1769429222779,0.222,2900.9,2900.2,7.79746317]
[1769429225193,0.128,2901.3,2900.2,7.79746317]
[1769429225194,0.722,2901.2,2900.3,7.79746317]
[1769429225558,0.002,2900.7,2900.3,7.79746317]
[1769429234095,0.002,2900.7,2900.1,1128.33561168]
[1769429234300,0.002,2900.7,2900.1,1120.53814851]
[1769429234504,1.18160471,2900.7,2900.1,1120.53814851]
[1769429238023,1.18160471,2900.7,2900.3,0.001]
[1769429242634,0.722,2900.6,2900.3,0.001]
[1769429243230,8.31883018,2900.3,2900.1,1096.15011755]
[1769429243600,8.31883018,2900.3,2900.1,1095.60011755]
[1769429243801,19.86890318,2900.2,2900.1,1091.97965983]
[1769429244018,1.54301718,2900.2,2900.1,1032.25183647]
[1769429244337,0.29434156,2900.2,2900.1,1022.61400647]
[1769429244537,8.22136456,2900.2,2900.1,1022.61400647]
[1769429244834,8.22136456,2900.2,2900.1,1019.76495721]
[1769429245128,0.128,2900.2,2900.1,1005.74002586]
[1769429245328,0.128,2900.2,2900.1,999.76578174]
[1769429245502,0.128,2900.2,2900.1,997.84065968]
[1769429245700,0.128,2900.2,2900.1,996.97753762]
[1769429245901,0.128,2900.2,2900.1,987.60301755]
[1769429246102,0.128,2900.2,2900.1,985.10536497]
[1769429246301,0.128,2900.2,2900.1,984.24224291]
[1769429246501,0.128,2900.2,2900.1,977.5802711]
[1769429246713,0.71904909,2900.2,2900.1,972.58496594]
[1769429246908,0.71904909,2900.2,2900.1,963.04725528]
[1769429247236,0.71904909,2900.2,2900.1,960.4578891]
[1769429247237,0.128,2900.2,2900.1,960.4578891]
[1769429247533,0.128,2900.2,2900.1,958.73164498]
[1769429247737,0.128,2900.2,2900.1,957.00540086]
[1769429248034,0.128,2900.2,2900.1,955.27915674]
[1769429248237,0.128,2900.2,2900.1,954.41603468]
[1769429248432,0.30225649,2900.2,2900.1,951.05526004]
[1769429248633,0.30225649,2900.2,2900.1,949.29687979]
[1769429248823,0.30225649,2900.2,2900.1,947.57063567]
[1769429249024,0.30225649,2900.2,2900.1,946.70751361]
[1769429249219,2.33395549,2900.2,2900.1,943.34673897]
[1769429249425,0.30225649,2900.2,2900.1,942.48361691]
[1769429249625,0.30225649,2900.2,2900.1,940.7359487]
[1769429249824,0.30225649,2900.2,2900.1,939.87282664]
[1769429250028,0.30225649,2900.2,2900.1,939.00970458]
[1769429250248,0.30225649,2900.2,2900.1,938.14658252]
[1769429250422,0.30225649,2900.2,2900.1,936.4203384]
[1769429250748,0.30225649,2900.2,2900.1,935.55721634]
[1769429250916,2.89754949,2900.2,2900.1,932.1964417]
[1769429251435,2.89754949,2900.2,2900.1,930.43806144]
[1769429251617,2.89754949,2900.2,2900.1,921.62637549]
[1769429251818,6.38259643,2900.2,2900.1,920.76325343]
[1769429252014,6.38259643,2900.2,2900.1,915.15881756]
[1769429252216,6.15725443,2900.2,2900.1,914.2956955]
[1769429252438,6.15725443,2900.2,2900.1,911.53364708]
[1769429252639,2.67220749,2900.2,2900.1,911.53364708]
[1769429252913,2.54420749,2900.2,2900.1,910.49784278]
[1769429253114,6.570566,2900.2,2900.1,910.49784278]
[1769429253333,6.44035348,2900.2,2900.1,910.22103855]
[1769429253537,0.51804383,2900.2,2900.1,910.22103855]
[1769429253915,0.002,2900.5,2900.1,910.22103855]
[1769429254318,0.724,2900.5,2900.2,8.68534425]
[1769429254539,0.724,2900.5,2900.2,8.09843351]
[1769429254849,0.722,2900.5,2900.3,7.52880539]
[1769429258048,0.128,2901.2,2900.3,7.95934714]
[1769429258252,0.724,2900.9,2900.3,7.95934714]
[1769429258928,0.722,2901.1,2900.3,7.95934714]
[1769429259329,1.442,2901.1,2900.5,4.167926]
[1769429259655,1.442,2901.1,2900.2,4.167926]
[1769429259656,1.442,2901.1,2900.6,7.90934714]
[1769429259955,1.442,2901.1,2900.3,7.93434714]
[1769429262669,0.72,2901.1,2900.3,7.93434714]
[1769429262833,0.722,2901.1,2900.5,7.93434714]
[1769429263168,0.724,2901.6,2900.9,7.07046316]
[1769429263338,6.69454711,2901.4,2900.2,7.86491296]
[1769429263543,2.1331,2901.2,2900.3,7.86491296]
[1769429263732,2.732909,2901.3,2900.3,7.86491296]
[1769429264129,6.69454711,2901.4,2900.3,7.86491296]
[1769429264330,6.69454711,2901.4,2900.4,7.86491296]
[1769429264959,0.722,2901.3,2900.7,7.86491296]
[1769429265261,0.722,2901.4,2900.7,7.45159392]
[1769429268184,0.002,2901.6,2901.0,7.86491296]
[1769429274987,0.002,2901.4,2901.0,7.86491296]
[1769429277985,0.002,2901.9,2901.3,10.06699562]
[1769429279260,0.002,2901.9,2901.0,10.06699562]
[1769429279468,0.002,2901.9,2901.0,10.92875759]
[1769429280160,0.002,2901.9,2901.2,10.06699562]
[1769429282488,0.002,2901.9,2901.3,10.06699562]
[1769429282987,14.43899637,2903.0,2901.6,10.06699562]
[1769429282988,7.75496482,2902.8,2901.6,10.06699562]
[1769429285258,7.75496482,2902.8,2900.9,3.44719452]
[1769429285259,7.8357115,2902.3,2900.8,4.167926]
[1769429285589,7.8357115,2902.3,2900.7,10.10147005]
[1769429285590,7.8377115,2902.1,2900.7,10.10147005]
[1769429285803,7.8377115,2902.1,2900.9,10.06699562]
[1769429285804,0.78377115,2902.0,2900.9,10.06699562]
[1769429286188,7.85065832,2901.9,2900.9,10.06699562]
[1769429286595,7.85065832,2901.9,2900.3,10.06699562]
[1769429286596,7.85065832,2901.7,2900.3,10.06699562]
[1769429286770,27.053707,2901.8,2900.3,10.06699562]
[1769429286771,7.85065832,2901.5,2900.3,10.06699562]
[1769429287706,7.85065832,2901.5,2899.8,1003.44849479]
[1769429287707,7.86591133,2901.2,2900.1,917.38649717]
[1769429287915,7.87983361,2900.9,2900.1,907.31950155]
[1769429288091,0.85,2901.0,2900.2,10.06699562]
[1769429288502,0.128,2901.0,2900.2,10.06699562]
[1769429289013,0.128,2901.0,2900.3,10.06699562]
[1769429289183,0.78506583,2901.4,2900.4,10.06699562]
[1769429289386,0.128,2901.3,2900.4,10.06699562]
[1769429289880,0.78506583,2901.4,2900.4,10.06699562]
[1769429290908,9.56551279,2901.4,2900.2,10.06699562]
[1769429291089,24.47609105,2901.1,2900.2,10.06699562]
[1769429291290,2.44760911,2901.0,2900.2,10.06699562]
[1769429291489,7.91878905,2901.1,2900.2,10.06699562]
[1769429292012,3.914531,2901.0,2900.2,10.06699562]
[1769429292706,7.93083291,2901.3,2900.2,10.06699562]
[1769429292913,8.79251679,2901.3,2900.2,9.7666628]
[1769429293114,11.129469,2901.2,2900.2,9.7666628]
[1769429293310,6.493358,2901.0,2900.2,9.7666628]
[1769429293614,1.9921989,2901.1,2900.2,9.7666628]
[1769429293791,0.78506583,2901.4,2900.2,9.7666628]
[1769429294108,0.78506583,2901.4,2900.4,10.06699562]
[1769429294509,8.26001305,2901.4,2900.4,10.06699562]
[1769429294709,8.26201305,2901.9,2900.6,10.06699562]
[1769429295007,0.13,2901.9,2900.6,10.06699562]
[1769429295983,8.28328825,2901.7,2900.6,10.06699562]
[1769429296193,11.804616,2901.4,2900.3,10.06699562]
[1769429296412,2.00879043,2901.3,2900.3,10.06699562]
[1769429296617,10.314326,2901.4,2900.3,10.06699562]
[1769429296991,3.860105,2901.4,2900.3,10.06699562]
[1769429297191,4.167926,2901.8,2900.3,10.06699562]
[1769429297396,4.167926,2901.8,2900.5,10.06699562]
[1769429297397,0.86153586,2901.8,2900.5,10.06699562]
[1769429297615,0.13,2901.9,2900.6,10.06699562]
[1769429297813,0.17752586,2901.8,2900.6,10.06699562]
[1769429298185,2.212466,2901.8,2900.9,11.15755024]
[1769429298391,0.13,2901.9,2900.9,11.15755024]
[1769429299519,4.317466,2901.8,2900.9,11.15755024]
[1769429299718,0.13,2901.9,2900.9,11.15755024]
[1769429299912,0.002,2901.9,2900.9,11.15755024]
[1769429300113,2.733466,2901.8,2900.9,11.15755024]
[1769429300421,2.212466,2901.8,2900.9,11.15755024]
[1769429301617,9.09331,2901.7,2900.8,0.001]
[1769429301794,4.42464,2901.7,2900.8,0.001]
[1769429301995,8.41951015,2901.8,2900.8,10.1310907]
[1769429302318,0.84215102,2901.7,2900.8,10.1310907]
[1769429302519,3.131726,2901.8,2900.8,10.1310907]
[1769429302993,0.002,2901.9,2900.8,10.1310907]
[1769429303403,2.799269,2901.8,2900.8,10.1310907]
[1769429303814,0.002,2901.9,2900.8,10.1310907]
[1769429304516,2.437566,2901.8,2900.8,10.1310907]
[1769429304717,0.2439566,2901.7,2900.8,10.1310907]
[1769429304923,0.002,2901.9,2900.8,10.1310907]
[1769429305524,2.39996,2901.8,2900.8,10.1310907]
[1769429306197,0.002,2901.9,2900.8,10.1310907]
[1769429306494,2.39996,2901.8,2900.8,10.1310907]
[1769429306819,0.002,2901.9,2900.8,10.1310907]
[1769429306995,2.4032,2901.8,2901.0,10.1300907]
[1769429307891,0.002,2901.9,2901.0,10.1300907]
[1769429309323,0.002,2901.9,2901.2,10.1300907]
[1769429309893,0.002,2901.6,2901.2,10.1300907]
[1769429313434,0.002,2901.6,2901.0,10.1300907]
[1769429314404,0.002,2901.6,2900.8,10.72627034]
[1769429314605,0.85544194,2901.6,2900.8,10.72627034]
[1769429315211,0.002,2901.6,2900.8,10.72627034]
[1769429318964,0.002,2901.6,2900.8,11.58808862]
[1769429319246,0.002,2901.8,2900.9,10.7597424]
[1769429319541,0.002,2901.9,2901.0,10.72527034]
[1769429319742,0.002,2901.9,2901.1,10.75974002]
[1769429319946,0.002,2901.9,2901.0,4.16264717]
[1769429319947,0.002,2901.9,2901.3,10.72527034]
[1769429321244,0.002,2901.9,2900.9,10.72527034]
[1769429322344,0.002,2901.4,2900.9,10.72527034]
[1769429323050,0.002,2901.4,2900.8,0.001]
[1769429323747,0.002,2901.4,2900.8,10.72627034]
[1769429323948,0.002,2901.4,2900.8,0.001]
[1769429325715,8.55248377,2901.4,2900.8,0.001]
[1769429325945,0.85524838,2901.3,2900.8,0.001]
[1769429327049,8.54878302,2900.9,2900.1,907.31950155]
[1769429327247,21.96351119,2900.7,2900.1,904.18376317]
[1769429327558,21.96351119,2900.7,2900.1,899.51882866]
[1769429327559,8.54878302,2900.5,2900.1,899.51882866]
[1769429327728,0.8548783,2900.4,2900.1,899.51882866]
[1769429328123,0.8548783,2900.4,2900.1,887.1367464]
[1769429328474,30.02740704,2900.2,2900.1,745.43522865]
[1769429328626,9.00951404,2900.2,2900.1,630.29594496]
[1769429328819,10.4984152,2900.2,2900.1,606.7600432]
[1769429329045,10.4984152,2900.2,2900.1,602.54814642]
[1769429329350,11.2204152,2900.2,2900.1,556.94574632]
[1769429329526,11.2204152,2900.2,2900.1,553.45716614]
[1769429329921,11.2204152,2900.2,2900.1,552.42163715]
[1769429330123,11.2204152,2900.2,2900.1,544.7733612]
[1769429330326,11.2204152,2900.2,2900.1,541.28711353]
[1769429330327,10.4984152,2900.2,2900.1,541.28711353]
[1769429330528,11.2204152,2900.2,2900.1,538.93774235]
[1769429330932,10.4984152,2900.2,2900.1,537.34591801]
[1769429331156,2.2879769,2900.2,2900.1,537.34591801]
[1769429331360,0.79907574,2900.2,2900.1,537.34591801]
[1769429331652,0.79907574,2900.2,2900.1,537.25198566]
[1769429332254,0.722,2900.2,2900.1,537.25198566]
[1769429333143,0.85,2900.2,2900.1,537.25198566]
[1769429334558,0.11193529,2900.2,2900.1,537.25198566]
[1769429334853,0.722,2900.2,2900.1,537.25198566]
[1769429336033,10.83526019,2901.1,2900.1,537.25198566]
[1769429336238,0.722,2901.0,2900.1,547.64704011]
[1769429336626,0.128,2900.9,2900.1,547.64704011]
[1769429337329,0.722,2900.8,2900.1,547.64704011]
[1769429337961,10.83526019,2901.1,2900.1,547.64704011]
[1769429338167,1.80552602,2901.0,2900.2,10.39505445]
[1769429338360,0.722,2901.0,2900.2,10.39505445]
[1769429339455,0.128,2901.2,2900.2,10.39505445]
[1769429340633,0.128,2901.3,2900.2,10.39505445]
[1769429341037,0.128,2901.3,2900.2,11.25705599]
[1769429341338,0.128,2901.3,2900.2,10.39505445]
[1769429341751,0.128,2901.3,2900.2,11.25706034]
[1769429342048,0.128,2901.3,2900.2,11.25705608]
[1769429342352,0.128,2901.3,2900.2,10.39505445]
[1769429342552,0.128,2901.3,2900.2,11.25705976]
[1769429342867,0.128,2901.3,2900.3,10.39505445]
[1769429343079,0.002,2901.4,2900.3,10.39505445]
[1769429344685,0.002,2901.6,2900.8,10.39505445]
[1769429345768,0.002,2901.2,2900.8,10.39505445]
[1769429345973,0.002,2901.2,2900.2,10.39505445]
[1769429347860,10.83726019,2901.2,2900.2,10.39505445]
[1769429348070,0.002,2901.2,2900.2,10.39505445]
[1769429348947,0.002,2901.2,2900.2,11.25705785]
[1769429349275,0.002,2901.2,2900.2,10.39505445]
[1769429350582,0.002,2901.2,2900.2,11.25706293]
[1769429350753,0.002,2901.2,2900.2,10.39505445]
[1769429351151,0.002,2901.2,2900.2,11.25705649]
[1769429353182,0.002,2901.2,2900.4,10.39505445]
[1769429353375,0.002,2901.2,2900.6,10.39505445]
[1769429358091,0.002,2901.4,2900.7,13.99647001]
[1769429358385,0.002,2901.4,2900.7,13.96199558]
[1769429360052,0.002,2901.4,2900.8,0.03447324]
[1769429360358,0.002,2901.6,2901.0,13.2783271]
[1769429362694,0.002,2901.6,2900.8,13.2783271]
[1769429363075,0.002,2901.6,2900.8,14.14015611]
[1769429363274,0.002,2901.6,2900.8,13.2783271]
[1769429364880,12.74484674,2901.4,2900.5,0.001]
[1769429365195,1.27448467,2901.3,2900.5,0.001]
[1769429367990,14.01933141,2901.3,2900.5,0.001]
[1769429368307,1.27448467,2901.3,2900.5,13.2793271]
[1769429368500,3.790361,2901.5,2900.5,13.2793271]
[1769429368682,12.74484674,2901.5,2900.5,13.2793271]
[1769429369606,13.46684674,2901.5,2900.7,0.001]
[1769429372206,6.422959,2901.4,2900.7,0.001]
[1769429372501,0.722,2901.5,2900.7,0.001]
[1769429372502,12.74484674,2901.3,2900.7,0.001]
[1769429372707,12.74484674,2901.1,2900.7,0.001]
[1769429373093,1.27448467,2901.2,2900.7,0.001]
[1769429373298,1.27448467,2901.2,2900.5,0.001]
[1769429373299,14.01933141,2901.2,2900.5,0.001]
[1769429378085,0.722,2901.1,2900.5,0.001]
[1769429378577,13.46684674,2901.1,2900.5,0.001]
[1769429378777,1.47413314,2901.0,2900.5,0.001]
[1769429379816,14.21897988,2901.0,2900.5,0.001]
[1769429380385,1.47413314,2901.0,2900.5,0.001]
[1769429380586,0.722,2901.1,2900.5,0.001]
[1769429381086,0.722,2901.1,2900.7,0.001]
[1769429381311,0.722,2901.1,2900.5,0.001]
[1769429381922,0.002,2901.0,2900.5,0.001]
[1769429383124,0.724,2901.0,2900.5,13.2793271]
[1769429383618,13.46884674,2901.0,2900.5,0.001]
[1769429383819,1.34688467,2900.9,2900.5,0.001]
[1769429384889,1.34688467,2900.9,2900.1,550.53031276]
[1769429384890,14.09173141,2900.9,2900.1,537.25198566]
[1769429387411,12.74484674,2900.7,2900.1,537.25198566]
[1769429387986,0.128,2900.8,2900.1,550.53031276]
[1769429388193,0.722,2900.7,2900.1,537.25198566]
[1769429389230,0.94168847,2900.7,2900.1,537.25198566]
[1769429391404,14.16338622,2900.7,2900.1,537.25198566]
[1769429393028,0.21968847,2900.7,2900.1,536.3888636]
[1769429393229,0.722,2900.6,2900.1,549.13779862]
[1769429393528,0.722,2900.6,2900.1,546.54843244]
[1769429393722,0.722,2900.6,2900.1,545.68531038]
[1769429394030,0.722,2900.6,2900.1,543.95906626]
[1769429394330,0.722,2900.6,2900.1,528.62076506]
[1769429394502,0.722,2900.6,2900.1,527.757643]
[1769429394830,0.722,2900.6,2900.1,526.03139888]
[1769429395033,0.002,2900.5,2900.1,524.30515476]
[1769429395204,0.002,2900.5,2900.1,523.4420327]
[1769429395404,0.002,2900.5,2900.1,521.71578858]
[1769429395606,0.002,2900.5,2900.1,520.85266652]
[1769429395923,0.002,2900.5,2900.1,519.11651476]
[1769429396124,0.002,2900.5,2900.1,517.39027064]
[1769429396433,0.002,2900.5,2900.2,10.15956882]
[1769429396434,0.722,2900.4,2900.2,10.15956882]
[1769429397631,0.722,2900.4,2900.1,516.52714858]
[1769429398130,0.002,2900.5,2900.1,530.13920566]
[1769429399306,0.002,2900.5,2900.1,516.52714858]
[1769429399514,0.002,2900.5,2900.1,513.34966746]
[1769429400443,0.002,2900.5,2900.1,511.7609269]
[1769429402108,0.002,2900.5,2900.1,525.37298398]
[1769429402307,0.724,2900.5,2900.2,12.74896478]
[1769429402533,0.724,2900.5,2900.2,11.88587248]
[1769429402734,0.724,2900.5,2900.2,10.15968788]
[1769429402940,0.724,2900.5,2900.2,8.43350328]
[1769429403128,0.002,2900.5,2900.2,7.57041098]
[1769429403331,0.002,2900.5,2900.2,5.84422638]
[1769429403538,0.002,2900.5,2900.2,4.98113408]
[1769429408614,0.002,2900.5,2900.1,511.7609269]
[1769429410049,0.002,2900.5,2900.1,525.37298398]
[1769429411845,0.002,2900.5,2900.1,511.7609269]
[1769429413233,13.22369775,2900.5,2900.1,511.7609269]
[1769429414056,0.002,2900.5,2900.1,525.37298398]
[1769429415247,0.002,2900.5,2900.2,13.61205708]
[1769429418191,0.002,2900.7,2900.3,13.65430903]
[1769429418684,0.002,2900.5,2900.3,13.65430903]
[1769429420673,0.002,2901.0,2900.4,13.52925967]
[1769429422271,13.98216104,2901.0,2900.1,512.4829269]
[1769429422458,15.37837714,2900.9,2900.1,512.4829269]
[1769429423072,1.3982161,2900.9,2900.2,13.52925967]
[1769429423303,13.98216104,2901.0,2900.2,13.52925967]
[1769429423511,13.98216104,2901.0,2900.1,512.4829269]
[1769429423684,13.98216104,2901.0,2900.1,526.01218657]
[1769429424805,13.98216104,2901.0,2900.2,13.52925967]
[1769429425024,1.3982161,2900.9,2900.2,13.52925967]
[1769429425206,0.002,2901.0,2900.2,13.52925967]
[1769429426022,13.98216104,2901.0,2900.1,512.4829269]
[1769429428021,0.002,2901.0,2900.2,13.52925967]
[1769429429824,13.98216104,2901.0,2900.2,13.52925967]
[1769429430180,13.98216104,2901.0,2900.1,512.4829269]
[1769429430383,15.45277714,2901.0,2900.1,512.4829269]
[1769429430620,15.45277714,2901.0,2900.3,0.001]
[1769429430823,0.002,2900.8,2900.3,0.001]
[1769429432713,13.98216104,2900.8,2900.3,0.001]
[1769429433198,14.70416104,2900.8,2900.3,0.001]
[1769429433436,1.4704161,2900.7,2900.3,0.001]
[1769429434837,1.4704161,2900.7,2900.1,511.7609269]
[1769429436434,15.45057714,2900.7,2900.1,511.7609269]
[1769429437522,15.45057714,2900.7,2900.1,502.79429095]
[1769429437523,4.16611777,2900.5,2900.1,502.79429095]
[1769429437725,13.98016104,2900.4,2900.1,502.79429095]
[1769429437958,1.82820018,2900.3,2900.1,502.79429095]
[1769429438258,1.82820018,2900.3,2900.1,450.07977974]
[1769429438259,14.70216104,2900.2,2900.1,450.07977974]
[1769429438565,14.70216104,2900.2,2900.1,435.93340698]
[1769429438856,14.70216104,2900.2,2900.1,432.63852002]
[1769429439018,14.70216104,2900.2,2900.1,428.74685478]
[1769429439648,14.70216104,2900.2,2900.1,423.54929751]
[1769429439848,1.68236225,2900.2,2900.1,423.54929751]
[1769429440153,1.54430047,2900.2,2900.1,423.54929751]
[1769429440815,1.54430047,2900.2,2900.1,415.90102156]
[1769429442955,0.50494768,2900.2,2900.1,415.90102156]
[1769429443150,0.722,2900.3,2900.1,415.90102156]
[1769429445627,0.002,2900.5,2900.1,415.90102156]
[1769429445959,0.722,2900.4,2900.1,415.90102156]
[1769429446565,0.002,2900.5,2900.1,429.43028123]
[1769429446766,0.002,2900.7,2900.2,13.52925967]
[1769429448135,0.002,2901.0,2900.6,13.52925967]
[1769429448963,0.722,2901.4,2900.6,13.52925967]
[1769429450858,0.128,2901.4,2900.6,13.52925967]
[1769429451169,0.722,2901.4,2900.6,13.52925967]
[1769429452470,0.002,2901.6,2900.9,13.12909277]
[1769429452653,2.05481906,2901.5,2900.9,13.12909277]
[1769429453053,0.002,2901.6,2900.9,13.12909277]
[1769429453372,0.002,2901.6,2900.4,13.12909277]
[1769429453373,13.19619058,2901.5,2900.4,13.12909277]
[1769429453559,13.19619058,2901.5,2900.5,13.12909277]
[1769429455256,0.724,2901.6,2900.8,13.12909277]
[1769429455974,0.002,2901.6,2900.8,13.12909277]
[1769429456456,0.002,2901.3,2900.8,13.12909277]
[1769429457073,0.002,2901.5,2900.7,4.16611777]
[1769429457238,13.19819058,2901.5,2900.6,0.001]
[1769429457651,13.19619058,2901.3,2900.6,0.001]
[1769429457850,13.19619058,2901.3,2900.1,415.90102156]
[1769429457851,12.643149,2901.2,2900.1,415.90102156]
[1769429458150,0.128,2901.4,2900.1,415.90102156]
[1769429458151,13.91819058,2901.1,2900.1,415.90102156]
[1769429458367,1.39181906,2901.0,2900.1,429.03011433]
[1769429458877,14.58800964,2901.0,2900.1,415.90102156]
[1769429460755,0.722,2900.9,2900.2,13.12909277]
[1769429462299,1.39181906,2901.0,2900.3,13.16357196]
[1769429462601,0.002,2901.5,2900.3,13.12909277]
[1769429462602,0.722,2901.3,2900.3,13.12909277]
[1769429463180,0.002,2901.5,2900.5,13.12909277]
[1769429463375,0.002,2901.5,2900.7,13.12909277]
[1769429464104,0.002,2901.5,2900.4,13.12909277]
[1769429464275,0.56512477,2901.4,2900.5,1.43358112]
[1769429464778,0.56512477,2901.4,2900.4,13.12909277]
[1769429467100,13.76131535,2901.4,2900.4,13.12909277]
[1769429467274,13.76131535,2901.4,2900.2,13.85109277]
[1769429467698,13.76131535,2901.4,2900.3,13.16357196]
[1769429467901,13.76131535,2901.4,2900.3,13.12909277]
[1769429468096,1.37633154,2901.3,2900.4,13.16357077]
[1769429468299,1.37633154,2901.3,2900.4,13.12909277]
[1769429468472,1.28712477,2901.4,2900.4,13.12909277]
[1769429468678,14.48331535,2901.4,2900.2,13.85109277]
[1769429468879,14.48331535,2901.4,2900.3,14.02554539]
[1769429469091,1.28712477,2901.4,2900.7,0.001]
[1769429469304,0.002,2901.2,2900.7,0.001]
[1769429469884,0.002,2901.4,2900.8,13.12909277]
[1769429470084,0.002,2901.5,2901.0,13.12909277]
[1769429470290,0.002,2901.6,2900.7,4.16711777]
[1769429470608,0.002,2901.6,2900.8,14.02537059]
[1769429470776,0.002,2901.6,2901.0,13.12909277]
[1769429473108,0.002,2901.9,2901.1,13.16356245]
[1769429473307,0.002,2901.9,2901.1,13.12909277]
[1769429474098,0.002,2901.9,2901.3,13.12909277]
[1769429474292,0.002,2901.9,2901.5,13.12909277]
[1769429476420,0.002,2901.9,2901.4,0.83956081]
[1769429476925,0.002,2901.9,2901.1,13.12909277]
[1769429477104,0.002,2901.9,2900.8,0.8618172]
[1769429477105,13.19819058,2901.9,2900.8,13.12909277]
[1769429477417,13.19819058,2901.9,2900.9,0.03447206]
[1769429477607,13.19819058,2901.9,2900.9,13.16356483]
[1769429477807,13.19819058,2901.9,2900.9,13.12909277]
[1769429478001,1.31981906,2901.8,2900.9,13.12909277]
[1769429478219,14.89331772,2901.8,2900.9,13.12909277]
[1769429478779,1.31981906,2901.8,2900.9,13.12909277]
[1769429478986,0.002,2901.9,2900.9,13.12909277]
[1769429479186,0.002,2901.9,2901.0,13.86432184]
[1769429479394,0.002,2901.9,2901.0,13.82985097]
[1769429481098,13.67556107,2901.9,2900.7,0.001]
[1769429481310,13.67556107,2901.9,2900.7,13.8653254]
[1769429481540,13.67556107,2901.7,2900.7,15.30357334]
[1769429482504,13.67556107,2901.7,2900.7,13.83085097]
[1769429482802,13.67556107,2901.7,2900.8,13.86432421]
[1769429482999,0.002,2901.7,2900.8,13.82985097]
[1769429483199,0.002,2901.7,2901.0,13.82985097]
[1769429483398,0.002,2901.7,2901.1,13.82985097]
[1769429486132,0.002,2901.7,2900.7,13.83085097]
[1769429486321,1.36755611,2901.6,2900.8,0.03447324]
[1769429486922,1.36755611,2901.6,2900.8,13.86432421]
[1769429487249,0.002,2901.7,2900.8,13.82985097]
[1769429487429,0.002,2901.7,2901.0,13.82985097]
[1769429488010,0.002,2901.7,2901.2,13.82985097]
[1769429488215,0.002,2901.7,2901.4,13.82985097]
[1769429492247,0.002,2901.7,2901.0,13.82985097]
[1769429492439,0.002,2901.7,2901.1,1.50363357]
[1769429492742,0.002,2901.7,2901.1,15.33348454]
[1769429492922,0.002,2901.7,2901.1,15.29901486]
[1769429493117,0.002,2901.7,2901.2,13.86531946]
[1769429493327,0.002,2901.9,2901.3,13.82985097]
[1769429494141,0.002,2902.1,2901.4,13.86431708]
[1769429494319,0.002,2902.1,2901.6,13.82985097]
[1769429495847,0.002,2902.1,2901.4,13.82985097]
[1769429496256,13.67556107,2902.1,2901.2,13.83085097]
[1769429497323,1.36775611,2902.0,2901.2,13.83085097]
[1769429497519,15.04131718,2902.0,2901.2,0.001]
[1769429502828,15.76331718,2902.0,2900.7,0.001]
[1769429503028,15.76331718,2902.0,2900.8,13.82985097]
[1769429503029,15.04131718,2902.0,2900.8,13.82985097]
[1769429503234,2.22633172,2901.9,2900.8,13.82985097]
[1769429503434,0.722,2901.9,2900.8,13.82985097]
[1769429503636,0.722,2901.9,2900.8,14.69167455]
[1769429503936,14.39756107,2902.1,2900.8,14.69167455]
[1769429505268,14.39756107,2902.1,2901.4,0.001]
[1769429505444,0.002,2901.9,2901.4,0.001]
[1769429505632,1.44195611,2901.9,2901.4,0.001]
[1769429505832,15.11551718,2901.9,2901.4,0.001]
[1769429507258,1.44195611,2901.9,2901.4,0.001]
[1769429507460,0.002,2901.9,2901.4,0.001]
[1769429511279,0.002,2901.9,2901.4,13.73033708]
[1769429512005,0.002,2902.1,2901.5,13.72933708]
[1769429512202,0.002,2902.1,2901.6,0.03446374]
[1769429512876,0.002,2902.1,2901.4,0.001]
[1769429513278,0.002,2902.1,2901.4,0.03546611]
[1769429513609,0.002,2902.1,2901.4,1.49811733]
[1769429515508,13.41539305,2902.1,2901.4,1.49811733]
[1769429517019,13.41539305,2902.1,2901.4,0.03546611]
[1769429517341,13.41539305,2902.1,2901.4,0.001]
[1769429517495,13.41539305,2902.1,2901.6,0.001]
[1769429517685,13.41539305,2901.9,2901.4,0.001]
[1769429518211,0.002,2901.9,2901.4,13.73033708]
[1769429518418,0.002,2901.9,2901.5,15.18853887]
[1769429519216,0.002,2901.9,2901.5,1.45920179]
[1769429519380,0.002,2901.9,2901.5,13.72933708]
[1769429519724,0.002,2902.1,2901.6,13.72933708]
[1769429521432,0.002,2902.1,2901.7,13.76378245]
[1769429521737,0.002,2902.1,2901.7,13.72933708]
[1769429523197,0.002,2902.2,2901.7,13.72933708]
[1769429523397,0.002,2902.2,2901.7,15.18842971]
[1769429524904,0.002,2902.4,2901.8,13.72933708]
[1769429527045,0.002,2902.6,2902.0,13.72933708]
[1769429527206,0.002,2902.6,2902.1,13.76379488]
[1769429527408,0.002,2902.6,2902.1,13.72933708]